fUSD/lending_fUSD_20240708
["ID","MTS","AMOUNT","RATE_DAILY","PERIOD"]
[331466428,1720427821182,-800.08,0.00034099,50]
[331466429,1720427821224,-500.0,0.00034099,38]
[331466430,1720427821268,-666.13,0.00034099,34]
[331466431,1720427821318,-800.08,0.00034099,51]
[331466432,1720427821361,-500.0,0.00034099,39]
[331466433,1720427821406,-666.13,0.00034099,35]
[331466434,1720427821451,-1647.33,0.00034099,34]
[331466435,1720427821495,-800.08,0.00034099,52]
[331466436,1720427821537,-500.0,0.00034099,35]
[331466437,1720427821581,-1647.33,0.00034099,35]
[331466438,1720427821627,-666.13,0.00034099,36]
[331466439,1720427821830,-800.20206428,0.00034099,53]
[331466440,1720427821880,-500.0,0.00034099,36]
[331466441,1720427821934,-1647.33,0.00034099,36]
[331466442,1720427821983,-500.0,0.00034099,40]
[331466443,1720427822033,-666.13,0.00034099,37]
[331466444,1720427822083,-500.0,0.00034099,37]
[331466445,1720427822132,-1647.33,0.00034099,37]
[331466446,1720427822178,-500.0,0.00034099,41]
[331466447,1720427822224,-666.13,0.00034099,38]
[331466448,1720427822268,-1647.33,0.00034099,38]
[331466449,1720427822314,-500.0,0.00034099,42]
[331466450,1720427822360,-666.13,0.00034099,39]
[331466451,1720427822406,-500.0,0.00034099,30]
[331466452,1720427822450,-500.0,0.00034099,43]
[331466453,1720427822495,-666.13,0.00034099,40]
[331466454,1720427822542,-1647.33,0.00034099,39]
[331466455,1720427822587,-500.0,0.00034099,31]
[331466456,1720427822640,-500.0,0.00034099,44]
[331466457,1720427822685,-666.13,0.00034099,41]
[331466458,1720427822731,-1155.95,0.00034099,30]
[331466459,1720427822775,-500.0,0.00034099,32]
[331466460,1720427822820,-500.0,0.00034099,45]
[331466461,1720427822866,-666.13,0.00034099,42]
[331466462,1720427822911,-1155.95,0.00034099,31]
[331466463,1720427822961,-500.0,0.00034099,38]
[331466464,1720427823010,-1647.33,0.00034099,40]
[331466465,1720427823055,-500.0,0.00034099,33]
[331466466,1720427823106,-500.0,0.00034099,46]
[331466467,1720427823154,-666.13,0.00034099,43]
[331466468,1720427823200,-500.0,0.00034099,39]
[331466469,1720427823248,-1647.33,0.00034099,41]
[331466470,1720427823296,-1155.95,0.00034099,32]
[331466471,1720427823350,-500.0,0.00034099,34]
[331466472,1720427823399,-500.0,0.00034099,47]
[331466473,1720427823447,-1120.73,0.00034099,30]
[331466474,1720427823497,-666.13,0.00034099,44]
[331466475,1720427823547,-500.0,0.00034099,40]
[331466476,1720427823605,-1647.33,0.00034099,42]
[331466477,1720427823654,-500.0,0.00034099,35]
[331466478,1720427823706,-1155.95,0.00034099,33]
[331466479,1720427823755,-666.13,0.00034099,45]
[331466480,1720427823807,-1120.73,0.00034099,31]
[331466481,1720427823862,-500.0,0.00034099,41]
[331466482,1720427823912,-500.0,0.00034099,48]
[331466483,1720427823962,-500.0,0.00034099,36]
[331466484,1720427824013,-1647.33,0.00034099,43]
[331466485,1720427824064,-1155.95,0.00034099,34]
[331466486,1720427824116,-666.13,0.00034099,46]
[331466487,1720427824168,-1120.73,0.00034099,32]
[331466488,1720427824216,-500.0,0.00034099,49]
[331466489,1720427824265,-500.0,0.00034099,37]
[331466490,1720427824312,-1647.33,0.00034099,44]
[331466491,1720427824360,-1155.95,0.00034099,35]
[331466492,1720427824405,-500.0,0.00034099,42]
[331466493,1720427824450,-569.3,0.00034099,50]
[331466494,1720427824496,-666.13,0.00034099,47]
[331466495,1720427824544,-500.0,0.00034099,38]
[331466496,1720427824591,-1155.95,0.00034099,36]
[331466497,1720427824642,-1647.33,0.00034099,45]
[331466498,1720427824687,-500.0,0.00034099,43]
[331466499,1720427824731,-666.13,0.00034099,48]
[331466500,1720427824777,-1120.73,0.00034099,33]
[331466501,1720427824822,-500.0,0.00034099,39]
[331466502,1720427824868,-1647.33,0.00034099,46]
[331466503,1720427824916,-1155.95,0.00034099,37]
[331466504,1720427824965,-500.0,0.00034099,44]
[331466505,1720427825018,-666.13,0.00034099,49]
[331466506,1720427825067,-1120.73,0.00034099,34]
[331466507,1720427825115,-500.0,0.00034099,30]
[331466508,1720427825161,-500.0,0.00034099,40]
[331466509,1720427825207,-500.0,0.00034099,45]
[331466510,1720427825252,-1155.95,0.00034099,38]
[331466511,1720427825298,-666.13,0.00034099,50]
[331466512,1720427825346,-1120.73,0.00034099,35]
[331466513,1720427825390,-500.0,0.00034099,31]
[331466514,1720427825435,-500.0,0.00034099,41]
[331466515,1720427825482,-500.0,0.00034099,46]
[331466516,1720427825533,-1647.33,0.00034099,47]
[331466517,1720427825585,-1155.95,0.00034099,39]
[331466518,1720427825652,-1120.73,0.00034099,36]
[331466519,1720427825708,-297.23075303,0.00034099,32]
[331466520,1720427825768,-666.13,0.00034099,51]
[331466521,1720427825826,-593.62,0.00034099,47]
[331466522,1720427825902,-1155.95,0.00034099,40]
[331466523,1720427825961,-1647.33,0.00034099,48]
[331466524,1720427826022,-1120.73,0.00034099,37]
[331466525,1720427826080,-666.13,0.00034099,52]
[331466526,1720427826136,-500.0,0.00034099,42]
[331466527,1720427826193,-1647.33,0.00034099,49]
[331466528,1720427826602,-1155.95,0.00034099,41]
[331466529,1720427826710,-1120.73,0.00034099,38]
[331466530,1720427826783,-666.18147446,0.00034099,53]
[331466531,1720427826836,-500.0,0.00034099,43]
[331466532,1720427826907,-1155.95,0.00034099,42]
[331466533,1720427826961,-500.0,0.00034099,44]
[331466534,1720427827015,-1155.95,0.00034099,43]
[331466535,1720427827068,-1647.33,0.00034099,50]
[331466536,1720427827120,-1120.73,0.00034099,39]
[331466537,1720427827173,-507.66349128,0.00034099,45]
[331466538,1720427827223,-1155.95,0.00034099,44]
[331466539,1720427827273,-1120.73,0.00034099,40]
[331466540,1720427827322,-1155.95,0.00034099,45]
[331466541,1720427827371,-1120.73,0.00034099,41]
[331466542,1720427827418,-1155.95,0.00034099,46]
[331466543,1720427827466,-1647.33,0.00034099,51]
[331466544,1720427827514,-1120.73,0.00034099,42]
[331466545,1720427827561,-1155.95,0.00034099,47]
[331466546,1720427827611,-1647.33,0.00034099,52]
[331466547,1720427827660,-1120.73,0.00034099,43]
[331466548,1720427827709,-1647.46392133,0.00034099,53]
[331466549,1720427827758,-622.61848671,0.00034099,30]
[331466550,1720427827807,-1120.73,0.00034099,44]
[331466551,1720427827869,-1155.95,0.00034099,48]
[331466552,1720427827923,-1120.73,0.00034099,45]
[331466553,1720427827974,-640.27739329,0.00034099,30]
[331466554,1720427828028,-1155.95,0.00034099,49]
[331466555,1720427828078,-682.67,0.00034099,30]
[331466556,1720427828131,-1120.73,0.00034099,46]
[331466557,1720427828185,-1155.95,0.00034099,50]
[331466558,1720427828239,-1120.73,0.00034099,47]
[331466559,1720427828293,-682.67,0.00034099,31]
[331466560,1720427828349,-1120.73,0.00034099,48]
[331466561,1720427828413,-1155.95,0.00034099,51]
[331466562,1720427828466,-682.67,0.00034099,32]
[331466563,1720427828517,-1155.95,0.00034099,52]
[331466564,1720427828565,-1120.73,0.00034099,49]
[331466565,1720427828616,-682.67,0.00034099,33]
[331466566,1720427828667,-1156.07067218,0.00034099,53]
[331466567,1720427828718,-1120.73,0.00034099,50]
[331466568,1720427828767,-1298.4,0.00034099,30]
[331466569,1720427828817,-682.67,0.00034099,34]
[331466570,1720427828867,-1120.73,0.00034099,51]
[331466571,1720427828917,-682.67,0.00034099,35]
[331466572,1720427828967,-1398.98,0.00034099,30]
[331466573,1720427829017,-1120.73,0.00034099,52]
[331466574,1720427829066,-682.67,0.00034099,36]
[331466575,1720427829116,-1398.98,0.00034099,31]
[331466576,1720427829168,-1298.4,0.00034099,31]
[331466577,1720427829217,-682.67,0.00034099,37]
[331466578,1720427829266,-1120.90192935,0.00034099,53]
[331466579,1720427829315,-1298.4,0.00034099,32]
[331466580,1720427829364,-682.67,0.00034099,38]
[331466581,1720427829411,-1298.4,0.00034099,33]
[331466582,1720427829458,-1398.98,0.00034099,32]
[331466583,1720427829507,-682.67,0.00034099,39]
[331466584,1720427829556,-1398.98,0.00034099,33]
[331466585,1720427829608,-682.67,0.00034099,40]
[331466586,1720427829658,-1398.98,0.00034099,34]
[331466587,1720427829707,-1298.4,0.00034099,34]
[331466588,1720427829757,-682.67,0.00034099,41]
[331466589,1720427829807,-1398.98,0.00034099,35]
[331466590,1720427829863,-1298.4,0.00034099,35]
[331466591,1720427829913,-505.54,0.00034099,30]
[331466592,1720427829963,-682.67,0.00034099,42]
[331466593,1720427830018,-1398.98,0.00034099,36]
[331466594,1720427830069,-1298.4,0.00034099,36]
[331466595,1720427830117,-505.54,0.00034099,31]
[331466596,1720427830167,-682.67,0.00034099,43]
[331466597,1720427830215,-1298.4,0.00034099,37]
[331466598,1720427830263,-1398.98,0.00034099,37]
[331466599,1720427830318,-682.67,0.00034099,44]
[331466600,1720427830447,-1298.4,0.00034099,38]
[331466601,1720427830498,-1398.98,0.00034099,38]
[331466602,1720427830546,-505.54,0.00034099,32]
[331466603,1720427830595,-682.67,0.00034099,45]
[331466604,1720427830651,-1298.4,0.00034099,39]
[331466605,1720427830699,-1398.98,0.00034099,39]
[331466606,1720427830747,-682.67,0.00034099,46]
[331466607,1720427830793,-505.54,0.00034099,33]
[331466608,1720427830840,-1298.4,0.00034099,40]
[331466609,1720427830899,-1398.98,0.00034099,40]
[331466610,1720427830953,-505.54,0.00034099,34]
[331466611,1720427831006,-682.67,0.00034099,47]
[331466612,1720427831055,-1298.4,0.00034099,41]
[331466613,1720427831109,-1398.98,0.00034099,41]
[331466614,1720427831157,-505.54,0.00034099,35]
[331466615,1720427831205,-682.67,0.00034099,48]
[331466616,1720427831252,-1298.4,0.00034099,42]
[331466617,1720427831298,-1398.98,0.00034099,42]
[331466618,1720427831343,-505.54,0.00034099,36]
[331466619,1720427831394,-682.67,0.00034099,49]
[331466620,1720427831439,-1298.4,0.00034099,43]
[331466621,1720427831486,-1398.98,0.00034099,43]
[331466622,1720427831532,-500.0,0.00034099,30]
[331466623,1720427831578,-682.67,0.00034099,50]
[331466624,1720427831623,-505.54,0.00034099,37]
[331466625,1720427831667,-1398.98,0.00034099,44]
[331466626,1720427831711,-1298.4,0.00034099,44]
[331466627,1720427831759,-500.0,0.00034099,31]
[331466628,1720427831809,-682.67,0.00034099,51]
[331466629,1720427831861,-1398.98,0.00034099,45]
[331466630,1720427831908,-505.54,0.00034099,38]
[331466631,1720427831959,-1298.4,0.00034099,45]
[331466632,1720427832007,-500.0,0.00034099,32]
[331466633,1720427832054,-682.67,0.00034099,52]
[331466634,1720427832107,-506.0345045,0.00034099,30]
[331466635,1720427832155,-1398.98,0.00034099,46]
[331466636,1720427832202,-505.54,0.00034099,39]
[331466637,1720427832250,-1298.4,0.00034099,46]
[331466638,1720427832297,-500.0,0.00034099,33]
[331466639,1720427832343,-682.74694543,0.00034099,53]
[331466640,1720427832392,-505.54,0.00034099,40]
[331466641,1720427832439,-1298.4,0.00034099,47]
[331466642,1720427832487,-1398.98,0.00034099,47]
[331466643,1720427832535,-500.0,0.00034099,34]
[331466644,1720427832581,-500.0,0.00034099,30]
[331466645,1720427832628,-505.54,0.00034099,41]
[331466646,1720427832675,-1298.4,0.00034099,48]
[331466647,1720427832719,-1398.98,0.00034099,48]
[331466648,1720427832763,-500.0,0.00034099,35]
[331466649,1720427832806,-500.0,0.00034099,31]
[331466650,1720427832850,-505.54,0.00034099,42]
[331466651,1720427832900,-1298.4,0.00034099,49]
[331466652,1720427832946,-1398.98,0.00034099,49]
[331466653,1720427832992,-500.0,0.00034099,36]
[331466654,1720427833039,-500.0,0.00034099,32]
[331466655,1720427833091,-1298.4,0.00034099,50]
[331466656,1720427833149,-500.0,0.00034099,37]
[331466657,1720427833198,-500.0,0.00034099,33]
[331466658,1720427833247,-1298.4,0.00034099,51]
[331466659,1720427833296,-381.44939851,0.00034099,38]
[331466660,1720427833343,-1398.98,0.00034099,50]
[331466661,1720427833393,-500.0,0.00034099,34]
[331466662,1720427833438,-505.54,0.00034099,43]
[331466663,1720427833485,-1398.98,0.00034099,51]
[331466664,1720427833531,-505.54,0.00034099,44]
[331466665,1720427833578,-1298.4,0.00034099,52]
[331466666,1720427833621,-1398.98,0.00034099,52]
[331466667,1720427833664,-500.0,0.00034099,35]
[331466668,1720427833707,-1298.54492374,0.00034099,53]
[331466669,1720427833751,-1399.11541815,0.00034099,53]
[331466670,1720427833794,-505.54,0.00034099,45]
[331466671,1720427833838,-500.0,0.00034099,36]
[331466672,1720427833885,-505.54,0.00034099,46]
[331466673,1720427833932,-500.0,0.00034099,37]
[331466674,1720427833977,-500.0,0.00034099,30]
[331466675,1720427834020,-505.54,0.00034099,47]
[331466676,1720427834063,-500.0,0.00034099,38]
[331466677,1720427834114,-505.54,0.00034099,48]
[331466678,1720427834161,-500.0,0.00034099,39]
[331466679,1720427834209,-505.54,0.00034099,49]
[331466680,1720427834259,-500.0,0.00034099,31]
[331466681,1720427834308,-500.0,0.00034099,30]
[331466682,1720427834360,-500.0,0.00034099,40]
[331466683,1720427834406,-505.54,0.00034099,50]
[331466684,1720427834451,-500.0,0.00034099,32]
[331466685,1720427834495,-500.0,0.00034099,41]
[331466686,1720427834539,-190.19,0.00034099,31]
[331466687,1720427834583,-505.54,0.00034099,51]
[331466688,1720427834626,-500.0,0.00034099,33]
[331466689,1720427834669,-500.0,0.00034099,42]
[331466690,1720427834712,-505.54,0.00034099,52]
[331466691,1720427834754,-500.0,0.00034099,34]
[331466692,1720427834796,-500.0,0.00034099,43]
[331466693,1720427834839,-505.65654416,0.00034099,53]
[331466694,1720427834890,-500.0,0.00034099,44]
[331466695,1720427834951,-500.0,0.00034099,45]
[331466696,1720427834998,-1447.56,0.00034099,30]
[331466697,1720427835045,-2062.26,0.00034099,30]
[331466698,1720427835091,-1447.56,0.00034099,31]
[331466699,1720427835147,-500.0,0.00034099,46]
[331466700,1720427835195,-2062.26,0.00034099,31]
[331466701,1720427835244,-1447.56,0.00034099,32]
[331466702,1720427835291,-500.0,0.00034099,47]
[331466703,1720427835337,-500.0,0.00034099,30]
[331466704,1720427835389,-2062.26,0.00034099,32]
[331466705,1720427835564,-500.0,0.00034099,35]
[331466706,1720427835612,-500.0,0.00034099,48]
[331466707,1720427835661,-1447.56,0.00034099,33]
[331466708,1720427835706,-500.0,0.00034099,31]
[331466709,1720427835752,-2062.26,0.00034099,33]
[331466710,1720427835798,-500.0,0.00034099,36]
[331466711,1720427835842,-500.0,0.00034099,49]
[331466712,1720427835894,-639.52011727,0.00034099,32]
[331466713,1720427835941,-500.0,0.00034099,30]
[331466714,1720427835986,-2062.26,0.00034099,34]
[331466715,1720427836034,-1447.56,0.00034099,34]
[331466716,1720427836080,-2062.26,0.00034099,35]
[331466717,1720427836126,-500.0,0.00034099,31]
[331466718,1720427836171,-1447.56,0.00034099,35]
[331466719,1720427836216,-428.03793543,0.00034099,50]
[331466720,1720427836263,-2062.26,0.00034099,36]
[331466721,1720427836308,-1447.56,0.00034099,36]
[331466722,1720427836359,-500.0,0.00034099,32]
[331466723,1720427836407,-1447.56,0.00034099,37]
[331466724,1720427836458,-2062.26,0.00034099,37]
[331466725,1720427836502,-500.0,0.00034099,33]
[331466726,1720427836546,-1447.56,0.00034099,38]
[331466727,1720427836590,-500.0,0.00034099,34]
[331466728,1720427836638,-1447.56,0.00034099,39]
[331466729,1720427836680,-2062.26,0.00034099,38]
[331466730,1720427836721,-2451.24,0.00034099,30]
[331466731,1720427836764,-500.0,0.00034099,35]
[331466732,1720427836806,-1447.56,0.00034099,40]
[331466733,1720427836849,-2062.26,0.00034099,39]
[331466734,1720427836899,-2451.24,0.00034099,31]
[331466735,1720427836946,-641.55,0.00034099,30]
[331466736,1720427836991,-500.0,0.00034099,36]
[331466737,1720427837037,-1447.56,0.00034099,41]
[331466738,1720427837081,-2062.26,0.00034099,40]
[331466739,1720427837127,-2451.24,0.00034099,32]
[331466740,1720427837175,-641.55,0.00034099,31]
[331466741,1720427837220,-500.0,0.00034099,37]
[331466742,1720427837264,-1447.56,0.00034099,42]
[331466743,1720427837307,-2062.26,0.00034099,41]
[331466744,1720427837349,-2451.24,0.00034099,33]
[331466745,1720427837395,-500.0,0.00034099,38]
[331466746,1720427837436,-641.55,0.00034099,32]
[331466747,1720427837476,-2062.26,0.00034099,42]
[331466748,1720427837517,-2451.24,0.00034099,34]
[331466749,1720427837560,-500.0,0.00034099,39]
[331466750,1720427837609,-641.55,0.00034099,33]
[331466751,1720427837650,-1447.56,0.00034099,43]
[331466752,1720427837693,-2451.24,0.00034099,35]
[331466753,1720427837735,-2062.26,0.00034099,43]
[331466754,1720427837777,-500.0,0.00034099,40]
[331466755,1720427837819,-1447.56,0.00034099,44]
[331466756,1720427837866,-2451.24,0.00034099,36]
[331466757,1720427837917,-2062.26,0.00034099,44]
[331466758,1720427837968,-500.0,0.00034099,41]
[331466759,1720427838018,-641.55,0.00034099,34]
[331466760,1720427838065,-1447.56,0.00034099,45]
[331466761,1720427838118,-2451.24,0.00034099,37]
[331466762,1720427838169,-500.0,0.00034099,42]
[331466763,1720427838222,-2062.26,0.00034099,45]
[331466764,1720427838271,-641.55,0.00034099,35]
[331466765,1720427838319,-1447.56,0.00034099,46]
[331466766,1720427838367,-2451.24,0.00034099,38]
[331466767,1720427838415,-2062.26,0.00034099,46]
[331466768,1720427838461,-327.84,0.00034099,43]
[331466769,1720427838509,-641.55,0.00034099,36]
[331466770,1720427838557,-1447.56,0.00034099,47]
[331466771,1720427838609,-2451.24,0.00034099,39]
[331466772,1720427838660,-2062.26,0.00034099,47]
[331466773,1720427838709,-641.55,0.00034099,37]
[331466774,1720427838757,-1447.56,0.00034099,48]
[331466775,1720427838803,-2451.24,0.00034099,40]
[331466776,1720427838850,-2062.26,0.00034099,48]
[331466777,1720427838900,-641.55,0.00034099,38]
[331466778,1720427838947,-1447.56,0.00034099,49]
[331466779,1720427838993,-2451.24,0.00034099,41]
[331466780,1720427839044,-2062.26,0.00034099,49]
[331466781,1720427839093,-1447.56,0.00034099,50]
[331466782,1720427839147,-641.55,0.00034099,39]
[331466783,1720427839197,-2451.24,0.00034099,42]
[331466784,1720427839248,-1447.56,0.00034099,51]
[331466785,1720427839296,-2062.26,0.00034099,50]
[331466786,1720427839343,-641.55,0.00034099,40]
[331466787,1720427839397,-2451.24,0.00034099,43]
[331466788,1720427839446,-732.41,0.00034099,30]
[331466789,1720427839497,-2062.26,0.00034099,51]
[331466790,1720427839545,-641.55,0.00034099,41]
[331466791,1720427839596,-2451.24,0.00034099,44]
[331466792,1720427839649,-732.41,0.00034099,31]
[331466793,1720427839697,-641.55,0.00034099,42]
[331466794,1720427840072,-2062.26,0.00034099,52]
[331466795,1720427840121,-1447.56,0.00034099,52]
[331466796,1720427840170,-2451.24,0.00034099,45]
[331466797,1720427840241,-641.55,0.00034099,43]
[331466798,1720427840294,-1447.7927075,0.00034099,53]
[331466799,1720427840348,-500.0,0.00034099,30]
[331466800,1720427840400,-2451.24,0.00034099,46]
[331466801,1720427840450,-641.55,0.00034099,44]
[331466802,1720427840523,-2062.40636898,0.00034099,53]
[331466803,1720427840602,-2451.24,0.00034099,47]
[331466804,1720427840688,-500.0,0.00034099,31]
[331466805,1720427840737,-2451.24,0.00034099,48]
[331466806,1720427840789,-641.55,0.00034099,45]
[331466807,1720427840838,-500.0,0.00034099,32]
[331466808,1720427840895,-2451.24,0.00034099,49]
[331466809,1720427840950,-641.55,0.00034099,46]
[331466810,1720427841007,-500.0,0.00034099,33]
[331466811,1720427841057,-641.55,0.00034099,47]
[331466812,1720427841117,-2451.24,0.00034099,50]
[331466813,1720427841171,-500.0,0.00034099,34]
[331466814,1720427841227,-641.55,0.00034099,48]
[331466815,1720427841281,-2451.24,0.00034099,51]
[331466816,1720427841334,-500.0,0.00034099,35]
[331466817,1720427841395,-641.55,0.00034099,49]
[331466818,1720427841450,-2451.24,0.00034099,52]
[331466819,1720427841502,-500.0,0.00034099,36]
[331466820,1720427841557,-641.55,0.00034099,50]
[331466821,1720427841613,-500.0,0.00034099,37]
[331466822,1720427841661,-641.55,0.00034099,51]
[331466823,1720427841710,-1122.87,0.00034099,30]
[331466824,1720427841758,-722.73,0.00034099,30]
[331466825,1720427841805,-641.55,0.00034099,52]
[331466826,1720427841853,-500.0,0.00034099,38]
[331466827,1720427841910,-1122.87,0.00034099,31]
[331466828,1720427841962,-722.73,0.00034099,31]
[331466829,1720427842013,-641.73635156,0.00034099,53]
[331466830,1720427842063,-500.0,0.00034099,39]
[331466831,1720427842115,-722.73,0.00034099,32]
[331466832,1720427842162,-1122.87,0.00034099,32]
[331466833,1720427842209,-500.0,0.00034099,40]
[331466834,1720427842256,-722.73,0.00034099,33]
[331466835,1720427842302,-579.46,0.00034099,30]
[331466836,1720427842347,-1122.87,0.00034099,33]
[331466837,1720427842396,-500.0,0.00034099,41]
[331466838,1720427842443,-722.73,0.00034099,34]
[331466839,1720427842490,-1122.87,0.00034099,34]
[331466840,1720427842536,-579.46,0.00034099,31]
[331466841,1720427842584,-500.0,0.00034099,42]
[331466842,1720427842629,-722.73,0.00034099,35]
[331466843,1720427842673,-1122.87,0.00034099,35]
[331466844,1720427842723,-579.46,0.00034099,32]
[331466845,1720427842768,-500.0,0.00034099,43]
[331466846,1720427842813,-732.41,0.00034099,32]
[331466847,1720427842861,-579.46,0.00034099,33]
[331466848,1720427842906,-1122.87,0.00034099,36]
[331466849,1720427842953,-759.35,0.00034099,30]
[331466850,1720427843001,-500.0,0.00034099,44]
[331466851,1720427843046,-722.73,0.00034099,36]
[331466852,1720427843095,-579.46,0.00034099,34]
[331466853,1720427843150,-1122.87,0.00034099,37]
[331466854,1720427843199,-759.35,0.00034099,31]
[331466855,1720427843248,-1122.87,0.00034099,38]
[331466856,1720427843299,-722.73,0.00034099,37]
[331466857,1720427843347,-579.46,0.00034099,35]
[331466858,1720427843396,-759.35,0.00034099,32]
[331466859,1720427843443,-500.0,0.00034099,45]
[331466860,1720427843490,-1122.87,0.00034099,39]
[331466861,1720427843535,-722.73,0.00034099,38]
[331466862,1720427843580,-759.35,0.00034099,33]
[331466863,1720427843625,-500.0,0.00034099,30]
[331466864,1720427843670,-500.0,0.00034099,46]
[331466865,1720427843720,-579.46,0.00034099,36]
[331466866,1720427843764,-1122.87,0.00034099,40]
[331466867,1720427843808,-722.73,0.00034099,39]
[331466868,1720427843856,-759.35,0.00034099,34]
[331466869,1720427843905,-732.41,0.00034099,33]
[331466870,1720427843952,-500.0,0.00034099,31]
[331466871,1720427844000,-522.87879623,0.00034099,47]
[331466872,1720427844048,-579.46,0.00034099,37]
[331466873,1720427844098,-722.73,0.00034099,40]
[331466874,1720427844149,-759.35,0.00034099,35]
[331466875,1720427844199,-732.41,0.00034099,34]
[331466876,1720427844253,-1122.87,0.00034099,41]
[331466877,1720427844305,-500.0,0.00034099,32]
[331466878,1720427844367,-722.73,0.00034099,41]
[331466879,1720427844418,-579.46,0.00034099,38]
[331466880,1720427844468,-732.41,0.00034099,35]
[331466881,1720427844519,-500.0,0.00034099,33]
[331466882,1720427844570,-1122.87,0.00034099,42]
[331466883,1720427844622,-759.35,0.00034099,36]
[331466884,1720427844671,-579.46,0.00034099,39]
[331466885,1720427844726,-722.73,0.00034099,42]
[331466886,1720427844776,-732.41,0.00034099,36]
[331466887,1720427844827,-759.35,0.00034099,37]
[331466888,1720427844877,-500.0,0.00034099,34]
[331466889,1720427844927,-1122.87,0.00034099,43]
[331466890,1720427844979,-722.73,0.00034099,43]
[331466891,1720427845033,-732.41,0.00034099,37]
[331466892,1720427845083,-579.46,0.00034099,40]
[331466893,1720427845133,-759.35,0.00034099,38]
[331466894,1720427845182,-500.0,0.00034099,35]
[331466895,1720427845231,-1122.87,0.00034099,44]
[331466896,1720427845281,-722.73,0.00034099,44]
[331466897,1720427845331,-732.41,0.00034099,38]
[331466898,1720427845383,-579.46,0.00034099,41]
[331466899,1720427845433,-500.0,0.00034099,30]
[331466900,1720427845483,-759.35,0.00034099,39]
[331466901,1720427845532,-500.0,0.00034099,36]
[331466902,1720427845580,-722.73,0.00034099,45]
[331466903,1720427845628,-579.46,0.00034099,42]
[331466904,1720427845679,-500.0,0.00034099,31]
[331466905,1720427845732,-759.35,0.00034099,40]
[331466906,1720427845781,-500.0,0.00034099,37]
[331466907,1720427845831,-722.73,0.00034099,46]
[331466908,1720427845882,-1122.87,0.00034099,45]
[331466909,1720427845938,-579.46,0.00034099,43]
[331466910,1720427845988,-732.41,0.00034099,39]
[331466911,1720427846038,-500.0,0.00034099,32]
[331466912,1720427846089,-759.35,0.00034099,41]
[331466913,1720427846148,-722.73,0.00034099,47]
[331466914,1720427846204,-500.0,0.00034099,38]
[331466915,1720427846271,-1122.87,0.00034099,46]
[331466916,1720427846331,-579.46,0.00034099,44]
[331466917,1720427846391,-732.41,0.00034099,40]
[331466918,1720427846453,-502.58135693,0.00034099,33]
[331466919,1720427846512,-759.35,0.00034099,42]
[331466920,1720427846569,-722.73,0.00034099,48]
[331466921,1720427846624,-500.0,0.00034099,39]
[331466922,1720427846680,-1122.87,0.00034099,47]
[331466923,1720427846734,-579.46,0.00034099,45]
[331466924,1720427846795,-732.41,0.00034099,41]
[331466925,1720427846851,-759.35,0.00034099,43]
[331466926,1720427846923,-722.73,0.00034099,49]
[331466927,1720427846989,-500.0,0.00034099,40]